{"text_format":"1","workbook":"xlsx","n_sheets":6,"sheets":["SHEET","PRINT","CTRL","MML","CNV","Prg_Chg"],"not_rendered":{"charts":0,"images":11,"macros":1,"external_links":0,"defined_names":49,"comments":0,"pivot_tables":0},"unopened":[],"bounds":{"document_bytes":16777216,"sheet_cells":100000,"rows_first":2000,"rows_last":500,"rows_between":2000,"halvings":0,"cell_chars":16384,"cell_head_chars":4096},"cells_cut":0,"cells_raw":0,"read":"whole","date_system":"1900"}

{"sheet":"SHEET","index":0,"n_rows":52,"n_cols":79,"rows_kept":52,"cut":false,"hidden":false,"merged":[[47,0,47,1],[48,0,48,1],[49,0,49,1],[50,0,50,1],[51,0,51,1],[42,0,42,1],[43,0,43,1],[44,0,44,1],[45,0,45,1],[46,0,46,1],[37,0,37,1],[38,0,38,1],[39,0,39,1],[40,0,40,1],[41,0,41,1],[32,0,32,1],[33,0,33,1],[34,0,34,1],[35,0,35,1],[36,0,36,1],[26,0,26,1],[27,0,27,1],[26,2,26,3],[27,2,27,3],[31,0,31,1],[25,2,25,3],[21,0,21,1],[22,0,22,1],[23,0,23,1],[24,0,24,1],[25,0,25,1],[2,8,18,9],[21,2,21,3],[22,2,22,3],[23,2,23,3],[24,2,24,3]]}
[null,{"$f":"C33","v":1}]
[null,12,{"$f":"D34","v":9},0]
[null,12,9,0,null,null,null,null,null,null,null,null,null,null,null,1,null,null,null,null,null,null,null,2,null,null,null,null,null,null,null,3,null,null,null,null,null,null,null,4,null,null,null,null,null,null,null,5,null,null,null,null,null,null,null,6,null,null,null,null,null,null,null,7,null,null,null,null,null,null,null,8]
[null,9,6.75,84,null,null,null,null,null,null,null,null,null,null,"ド"]
[null,8,6,83,null,null,null,null,null,null,null,null,null,null,"シ"]
[null,8,6,81,null,null,null,null,null,null,null,null,null,null,"ラ"]
[null,9,6.75,79,null,null,null,null,null,null,null,null,null,null,"ソ"]
[null,8,6,77,null,null,null,null,null,null,null,null,null,null,"ﾌｧ"]
[null,8,6,76,null,null,null,null,null,null,null,null,null,null,"ミ"]
[null,9,6.75,74,null,null,null,null,null,null,null,null,null,null,"レ"]
[null,8,6,72,null,null,null,null,null,null,null,null,null,null,"ド"]
[null,8,6,71,null,null,null,null,null,null,null,null,null,null,"シ"]
[null,9,6.75,69,null,null,null,null,null,null,null,null,null,null,"ラ"]
[null,8,6,67,null,null,null,null,null,null,null,null,null,null,"ソ"]
[null,8,6,65,null,null,null,null,null,null,null,null,null,null,"ﾌｧ"]
[null,9,6.75,64,null,null,null,null,null,null,null,null,null,null,"ミ"]
[null,8,6,62,null,null,null,null,null,null,null,null,null,null,"レ"]
[null,9,6.75,60,null,null,null,null,null,null,null,null,null,null,"ド"]
[null,12,9,0,null,null,null,null,null,null,null,null,null,null,null,1,2,3,4,5,6,7,8,1,2,3,4,5,6,7,8,1,2,3,4,5,6,7,8,1,2,3,4,5,6,7,8,1,2,3,4,5,6,7,8,1,2,3,4,5,6,7,8,1,2,3,4,5,6,7,8,1,2,3,4,5,6,7,8]
[null,12,9,0]
[]
["テンポ",null,80]
["音符",null,16]
["ms",null,{"$f":"INT(60000/(C22*C23/4))","v":187}]
["key",null,8]
["音色",null,108]
["小節長",null,8]
["小節数",null,8]
[]
[]
[]
["弁",null,15]
["横間隔",null,1,"0.75単位","ノート",null,null,null,null,null,null,null,null,null,null,null,null,8]
["余白",null,12,{"$f":"C34*0.75","v":9}]
["余白",null,12,{"$f":"C35*0.75","v":9}]
["ド",null,9,{"$f":"0.75*C36","v":6.75},{"$f":"E43+12","v":84}]
["シ",null,8,{"$f":"0.75*C37","v":6},83]
["ラ",null,8,6,81]
["ソ",null,9,6.75,79]
["ﾌｧ",null,8,6,77]
["ミ",null,8,6,76]
["レ",null,9,6.75,74]
["ド",null,8,6,{"$f":"E50+12","v":72}]
["シ",null,8,6,71]
["ラ",null,9,6.75,69]
["ソ",null,8,6,67]
["ﾌｧ",null,8,6,65]
["ミ",null,9,6.75,64]
["レ",null,8,6,62,null,null,null,null,null,null,null,null,null,null,null,null,1,2,3,4,5,6,7,8]
["ド",null,9,6.75,60]
["余白",null,12,{"$f":"C51*0.75","v":9}]
["余白",null,12,{"$f":"C52*0.75","v":9}]

{"sheet":"PRINT","index":1,"n_rows":47,"n_cols":138,"rows_kept":47,"cut":false,"hidden":false,"merged":[[2,6,18,6],[22,0,22,1],[22,2,22,3],[26,0,26,1],[27,0,27,1],[21,0,21,1],[21,2,21,3],[31,0,31,1],[32,0,32,1],[33,0,33,1],[28,0,28,1],[29,0,29,1],[30,0,30,1],[37,0,37,1],[38,0,38,1],[39,0,39,1],[34,0,34,1],[35,0,35,1],[36,0,36,1],[46,0,46,1],[43,0,43,1],[44,0,44,1],[45,0,45,1],[40,0,40,1],[41,0,41,1],[42,0,42,1]]}
[null,{"$f":"C28","v":1}]
[null,12,9,0]
[null,12,9,0,null,null,null,null,null,null,1,null,null,null,null,null,null,null,2,null,null,null,null,null,null,null,3,null,null,null,null,null,null,null,4,null,null,null,null,null,null,null,5,null,null,null,null,null,null,null,6,null,null,null,null,null,null,null,7,null,null,null,null,null,null,null,8,null,null,null,null,null,null,null,9,null,null,null,null,null,null,null,10,null,null,null,null,null,null,null,11,null,null,null,null,null,null,null,12,null,null,null,null,null,null,null,13,null,null,null,null,null,null,null,14,null,null,null,null,null,null,null,15,null,null,null,null,null,null,null,16]
[null,9,6.75,84,null,null,null,null,null,"ド"]
[null,8,6,83,null,null,null,null,null,"シ"]
[null,8,6,81,null,null,null,null,null,"ラ"]
[null,9,6.75,79,null,null,null,null,null,"ソ"]
[null,8,6,77,null,null,null,null,null,"ﾌｧ"]
[null,8,6,76,null,null,null,null,null,"ミ"]
[null,9,6.75,74,null,null,null,null,null,"レ"]
[null,8,6,72,null,null,null,null,null,"ド"]
[null,8,6,71,null,null,null,null,null,"シ"]
[null,9,6.75,69,null,null,null,null,null,"ラ"]
[null,8,6,67,null,null,null,null,null,"ソ"]
[null,8,6,65,null,null,null,null,null,"ﾌｧ"]
[null,9,6.75,64,null,null,null,null,null,"ミ"]
[null,8,6,62,null,null,null,null,null,"レ"]
[null,9,6.75,60,null,null,null,null,null,"ド"]
[null,12,9,0,null,null,null,null,null,null,1,2,3,4,5,6,7,8,1,2,3,4,5,6,7,8,1,2,3,4,5,6,7,8,1,2,3,4,5,6,7,8,1,2,3,4,5,6,7,8,1,2,3,4,5,6,7,8,1,2,3,4,5,6,7,8,1,2,3,4,5,6,7,8,1,2,3,4,5,6,7,8,1,2,3,4,5,6,7,8,1,2,3,4,5,6,7,8,1,2,3,4,5,6,7,8,1,2,3,4,5,6,7,8,1,2,3,4,5,6,7,8,1,2,3,4,5,6,7,8,1,2,3,4,5,6,7,8]
[null,12,9,0]
[null,null,null,null,null,null,null,"図形選択"]
["小節長",null,8,null,null,null,null,"カーソル移動"]
["小節数",null,16,null,null,null,null,"サイズ調整"]
[null,null,null,null,null,null,null,"Shift+Ctrl"]
[]
[]
["弁",null,15]
["横間隔",null,1,"0.75単位","ノート",null,null,null,null,null,null,null,16]
["余白",null,12,{"$f":"C29*0.75","v":9}]
["余白",null,12,{"$f":"C30*0.75","v":9}]
["ド",null,9,{"$f":"0.75*C31","v":6.75},{"$f":"E38+12","v":84}]
["シ",null,8,{"$f":"0.75*C32","v":6},83]
["ラ",null,8,6,81]
["ソ",null,9,6.75,79]
["ﾌｧ",null,8,6,77]
["ミ",null,8,6,76]
["レ",null,9,6.75,74]
["ド",null,8,6,{"$f":"E45+12","v":72}]
["シ",null,8,6,71]
["ラ",null,9,6.75,69]
["ソ",null,8,6,67]
["ﾌｧ",null,8,6,65]
["ミ",null,9,6.75,64]
["レ",null,8,6,62,null,null,null,null,null,null,null,1,2,3,4,5,6,7,8]
["ド",null,9,6.75,60]
["余白",null,12,{"$f":"C46*0.75","v":9}]
["余白",null,12,{"$f":"C47*0.75","v":9}]

{"sheet":"CTRL","index":2,"n_rows":75,"n_cols":6,"rows_kept":75,"cut":false,"hidden":false,"merged":[]}
[]
[]
[]
[]
[8,70,0,null,16,2]
[null,"_",null,null,"______AG"]
[null,"_",null,null,"C_hC_hC_AGC_hC_hC_AG"]
[null,"_",null,null,"C_hC_uA_hC_uG_B_B_AG"]
[null,"_",null,null,"uG_B_B_AGuG_B_B_AG"]
[null,"_",null,null,"uG_B_uA_B_C_hC_hC_"]
[null,"_"]
[null,"A"]
[null,"G"]
[null,"C"]
[null,"_"]
[null,"H"]
[null,"_"]
[null,"H"]
[null,"_"]
[null,"A"]
[null,"G"]
[null,"C"]
[null,"_"]
[null,"H"]
[null,"_"]
[null,"H"]
[null,"_"]
[null,"A"]
[null,"G"]
[null,"C"]
[null,"_"]
[null,"H"]
[null,"_"]
[null,"a"]
[null,"_"]
[null,"H"]
[null,"_"]
[null,"g"]
[null,"_"]
[null,"B"]
[null,"_"]
[null,"B"]
[null,"_"]
[null,"A"]
[null,"G"]
[null,"g"]
[null,"_"]
[null,"B"]
[null,"_"]
[null,"B"]
[null,"_"]
[null,"A"]
[null,"G"]
[null,"g"]
[null,"_"]
[null,"B"]
[null,"_"]
[null,"B"]
[null,"_"]
[null,"A"]
[null,"G"]
[null,"g"]
[null,"_"]
[null,"B"]
[null,"_"]
[null,"a"]
[null,"_"]
[null,"B"]
[null,"_"]
[null,"C"]
[null,"_"]
[null,"H"]
[null,"_"]
[null,"H"]
[null,"_"]

{"sheet":"MML","index":3,"n_rows":0,"n_cols":0,"rows_kept":0,"cut":false,"hidden":false,"merged":[]}

{"sheet":"CNV","index":4,"n_rows":9,"n_cols":2,"rows_kept":9,"cut":false,"hidden":false,"merged":[]}
["TAB2MML"]
["c",{"$f":"\"u\" & UPPER(A2)","v":"uC"}]
["d",{"$f":"\"u\" & UPPER(A3)","v":"uD"}]
["e","uE"]
["f","uF"]
["g","uG"]
["a","uA"]
["b","uB"]
["H","hC"]

{"sheet":"Prg_Chg","index":5,"n_rows":128,"n_cols":4,"rows_kept":128,"cut":false,"hidden":false,"merged":[]}
[0,"アコースティックピアノ","Acoustic Piano","*MusicBox"]
[1,"ブライトピアノ","Bright Piano","t120 v15 @10 %90 o6 L8"]
[2,"エレクトリック・グランドピアノ","Electric Grand Piano","R1"]
[3,"ホンキートンクピアノ","Honky-tonk Piano"]
[4,"エレクトリックピアノ","Electric Piano"]
[5,"FMエレクトリックピアノ","Electric Piano 2"]
[6,"ハープシコード","Harpsichord"]
[7,"クラビネット","Clavi"]
[8,"チェレスタ","Celesta"]
[9,"グロッケンシュピール","Glockenspiel"]
[10,"オルゴール","Musical box"]
[11,"ヴィブラフォン","Vibraphone"]
[12,"マリンバ","Marimba"]
[13,"シロフォン","Xylophone"]
[14,"チューブラーベル","Tubular Bell"]
[15,"ダルシマー","Dulcimer"]
[16,"ドローバーオルガン","Drawbar Organ"]
[17,"パーカッシブオルガン","Percussive Organ"]
[18,"ロックオルガン","Rock Organ"]
[19,"チャーチオルガン","Church organ"]
[20,"リードオルガン","Reed organ"]
[21,"アコーディオン","Accordion"]
[22,"ハーモニカ","Harmonica"]
[23,"タンゴアコーディオン","Tango Accordion"]
[24,"アコースティックギター（ナイロン弦）","Acoustic Guitar (nylon)"]
[25,"アコースティックギター（スチール弦）","Acoustic Guitar (steel)"]
[26,"ジャズギター","Electric Guitar (jazz)"]
[27,"クリーンギター","Electric Guitar (clean)"]
[28,"ミュートギター","Electric Guitar (muted)"]
[29,"オーバードライブギター","Overdriven Guitar"]
[30,"ディストーションギター","Distortion Guitar"]
[31,"ギターハーモニクス","Guitar harmonics"]
[32,"アコースティックベース","Acoustic Bass"]
[33,"フィンガー・ベース","Electric Bass (finger)"]
[34,"ピック・ベース","Electric Bass (pick)"]
[35,"フレットレスベース","Fretless Bass"]
[36,"スラップベース 1","Slap Bass 1"]
[37,"スラップベース 2","Slap Bass 2"]
[38,"シンセベース 1","Synth Bass 1"]
[39,"シンセベース 2","Synth Bass 2"]
[40,"ヴァイオリン","Violin"]
[41,"ヴィオラ","Viola"]
[42,"チェロ","Cello"]
[43,"コントラバス","Double bass"]
[44,"トレモロ","Tremolo Strings"]
[45,"ピッチカート","Pizzicato Strings"]
[46,"ハープ","Orchestral Harp"]
[47,"ティンパニ","Timpani"]
[48,"ストリングアンサンブル","String Ensemble 1"]
[49,"スローストリングアンサンブル","String Ensemble 2"]
[50,"シンセストリングス","Synth Strings 1"]
[51,"シンセストリングス2","Synth Strings 2"]
[52,"声「アー」","Voice Aahs"]
[53,"声「ドゥー」","Voice Oohs"]
[54,"シンセヴォイス","Synth Voice"]
[55,"オーケストラヒット","Orchestra Hit"]
[56,"トランペット","Trumpet"]
[57,"トロンボーン","Trombone"]
[58,"チューバ","Tuba"]
[59,"ミュートトランペット","Muted Trumpet"]
[60,"フレンチ・ホルン","French horn"]
[61,"ブラスセクション","Brass Section"]
[62,"シンセブラス 1","Synth Brass 1"]
[63,"シンセブラス 2","Synth Brass 2"]
[64,"ソプラノサックス","Soprano Sax"]
[65,"アルトサックス","Alto Sax"]
[66,"テナーサックス","Tenor Sax"]
[67,"バリトンサックス","Baritone Sax"]
[68,"オーボエ","Oboe"]
[69,"イングリッシュホルン","English Horn"]
[70,"ファゴット","Bassoon"]
[71,"クラリネット","Clarinet"]
[72,"ピッコロ","Piccolo"]
[73,"フルート","Flute"]
[74,"リコーダー","Recorder"]
[75,"パンフルート","Pan Flute"]
[76,"ブロウンボトル（吹きガラス瓶）","Blown Bottle"]
[77,"尺八","Shakuhachi"]
[78,"口笛","Whistle"]
[79,"オカリナ","Ocarina"]
[80,"正方波","Lead 1 (square)"]
[81,"ノコギリ波","Lead 2 (sawtooth)"]
[82,"カリオペリード","Lead 3 (calliope)"]
[83,"チフリード","Lead 4 (chiff)"]
[84,"チャランゴリード","Lead 5 (charang)"]
[85,"声リード","Lead 6 (voice)"]
[86,"フィフスズリード","Lead 7 (fifths)"]
[87,"ベース + リード","Lead 8 (bass + lead)"]
[88,"ファンタジア","Pad 1 (Fantasia)"]
[89,"ウォーム","Pad 2 (warm)"]
[90,"ポリシンセ","Pad 3 (polysynth)"]
[91,"クワイア","Pad 4 (choir)"]
[92,"ボウ","Pad 5 (bowed)"]
[93,"メタリック","Pad 6 (metallic)"]
[94,"ハロー","Pad 7 (halo)"]
[95,"スウィープ","Pad 8 (sweep)"]
[96,"雨","FX 1 (rain)"]
[97,"サウンドトラック","FX 2 (soundtrack)"]
[98,"クリスタル","FX 3 (crystal)"]
[99,"アトモスフィア","FX 4 (atmosphere)"]
[100,"ブライトネス","FX 5 (brightness)"]
[101,"ゴブリン","FX 6 (goblins)"]
[102,"エコー","FX 7 (echoes)"]
[103,"サイファイ","FX 8 (sci-fi)"]
[104,"シタール","Sitar"]
[105,"バンジョー","Banjo"]
[106,"三味線","Shamisen"]
[107,"琴","Koto"]
[108,"カリンバ","Kalimba"]
[109,"バグパイプ","Bagpipe"]
[110,"フィドル","Fiddle"]
[111,"シャハナーイ","Shanai"]
[112,"ティンクルベル","Tinkle Bell"]
[113,"アゴゴ","Agogo"]
[114,"スチールドラム","Steel Drums"]
[115,"ウッドブロック","Woodblock"]
[116,"太鼓","Taiko Drum"]
[117,"メロディックタム","Melodic Tom"]
[118,"シンセドラム","Synth Drum"]
[119,"逆シンバル","Reverse Cymbal"]
[120,"ギターフレットノイズ","Guitar Fret Noise"]
[121,"ブレスノイズ","Breath Noise"]
[122,"海岸","Seashore"]
[123,"鳥の囀り","Bird Tweet"]
[124,"電話のベル","Telephone Ring"]
[125,"ヘリコプター","Helicopter"]
[126,"拍手","Applause"]
[127,"銃声","Gunshot"]